[Event "Titled Tuesday Blitz September 27 Early 2022"]
[White "Cruz, Jonathan"]
[Black "Fernandez De La Vara, Arnaldo"]
[WhiteFideId "3802124"]
[BlackFideId "3518388"]
[WhiteElo "2406"]
[BlackElo "2387"]
[Result "0-1"]
[Round "09"]
[TimeControl "180+1"]
[Date "2022.09.27"]
[WhiteClock "0:00:01"]
[BlackClock "0:00:50"]

1. e4 {[%clk 0:02:56]}  c5 {[%clk 0:03:00]} 2. Nf3 {[%clk 0:02:56]}  e6 {[%clk 0:03:01]} 3. c3 {[%clk 0:02:54]}  d5 {[%clk 0:03:01]} 4. e5 {[%clk 0:02:52]}  d4 {[%clk 0:03:02]} 5. Bd3 {[%clk 0:02:47]}  Nc6 {[%clk 0:03:02]} 6. O-O {[%clk 0:02:46]}  Nge7 {[%clk 0:03:02]} 7. Re1 {[%clk 0:02:39]}  Ng6 {[%clk 0:03:02]} 8. Na3 {[%clk 0:02:30]}  a6 {[%clk 0:02:52]} 9. Nc2 {[%clk 0:02:18]}  Be7 {[%clk 0:02:43]} 10. Re4 {[%clk 0:02:00]}  O-O {[%clk 0:02:24]} 11. cxd4 {[%clk 0:01:59]}  cxd4 {[%clk 0:02:24]} 12. b3 {[%clk 0:01:41]}  Bc5 {[%clk 0:02:21]} 13. Bb2 {[%clk 0:01:28]}  b5 {[%clk 0:02:14]} 14. b4 {[%clk 0:01:17]}  Bb6 {[%clk 0:02:11]} 15. a4 {[%clk 0:01:11]}  bxa4 {[%clk 0:02:08]} 16. Rxa4 {[%clk 0:01:05]}  Bb7 {[%clk 0:02:09]} 17. Qe2 {[%clk 0:01:03]}  Nce7 {[%clk 0:01:51]} 18. Rg4 {[%clk 0:00:57]}  Qd7 {[%clk 0:01:44]} 19. Ra1 {[%clk 0:00:52]}  Nf5 {[%clk 0:01:40]} 20. Ng5 {[%clk 0:00:35]}  Bc7 {[%clk 0:01:21]} 21. Nxd4 {[%clk 0:00:21]}  Qd5 {[%clk 0:00:51]} 22. Be4 {[%clk 0:00:18]}  Nxd4 {[%clk 0:00:51]} 23. Qd3 {[%clk 0:00:05]}  Qxe5 {[%clk 0:00:49]} 24. Bxb7 {[%clk 0:00:01]}  Qxh2+ {[%clk 0:00:49]} 25. Kf1 {[%clk 0:00:01]}  Qh1# {[%clk 0:00:50]} 0-1


[Site "https://www.chess.com"]

[Event "Titled Tuesday Blitz September 27 Early 2022"]
[White "Domingo Nunez, Ruben"]
[Black "Jean Louis, Marckens"]
[WhiteFideId "22245570"]
[BlackFideId "11900270"]
[WhiteElo "2406"]
[BlackElo "2031"]
[Result "0-1"]
[Round "09"]
[TimeControl "180+1"]
[Date "2022.09.27"]
[WhiteClock "0:00:07"]
[BlackClock "0:00:14"]

1. Nf3 {[%clk 0:03:00]}  d6 {[%clk 0:02:57]} 2. d4 {[%clk 0:02:52]}  Nf6 {[%clk 0:02:56]} 3. g3 {[%clk 0:02:51]}  g6 {[%clk 0:02:56]} 4. Bg2 {[%clk 0:02:51]}  Bg7 {[%clk 0:02:57]} 5. O-O {[%clk 0:02:51]}  O-O {[%clk 0:02:57]} 6. c4 {[%clk 0:02:51]}  c6 {[%clk 0:02:57]} 7. Nc3 {[%clk 0:02:52]}  Re8 {[%clk 0:02:55]} 8. Bg5 {[%clk 0:02:51]}  Qb6 {[%clk 0:02:53]} 9. Qc1 {[%clk 0:02:50]}  Bg4 {[%clk 0:02:50]} 10. Rd1 {[%clk 0:02:49]}  Nbd7 {[%clk 0:02:48]} 11. h3 {[%clk 0:02:49]}  Bxf3 {[%clk 0:02:48]} 12. Bxf3 {[%clk 0:02:49]}  e5 {[%clk 0:02:48]} 13. Be3 {[%clk 0:02:44]}  exd4 {[%clk 0:02:45]} 14. Bxd4 {[%clk 0:02:44]}  Qc7 {[%clk 0:02:42]} 15. Qc2 {[%clk 0:02:35]}  Ne5 {[%clk 0:02:40]} 16. Bxe5 {[%clk 0:02:24]}  dxe5 {[%clk 0:02:37]} 17. e3 {[%clk 0:02:19]}  Rad8 {[%clk 0:02:32]} 18. c5 {[%clk 0:02:17]}  Qa5 {[%clk 0:02:22]} 19. Qb3 {[%clk 0:02:16]}  e4 {[%clk 0:02:18]} 20. Bg2 {[%clk 0:02:15]}  Qxc5 {[%clk 0:02:17]} 21. Qxb7 {[%clk 0:02:15]}  Rb8 {[%clk 0:02:17]} 22. Qc7 {[%clk 0:01:46]}  Rbc8 {[%clk 0:01:55]} 23. Qf4 {[%clk 0:01:43]}  Nd5 {[%clk 0:01:53]} 24. Nxe4 {[%clk 0:01:29]}  Qa5 {[%clk 0:01:44]} 25. Rxd5 {[%clk 0:01:19]}  cxd5 {[%clk 0:01:43]} 26. Nd6 {[%clk 0:01:19]}  Rf8 {[%clk 0:01:32]} 27. Nxc8 {[%clk 0:01:18]}  Rxc8 {[%clk 0:01:33]} 28. Rd1 {[%clk 0:01:17]}  d4 {[%clk 0:01:26]} 29. exd4 {[%clk 0:00:42]}  Qxa2 {[%clk 0:01:26]} 30. Bb7 {[%clk 0:00:33]}  Rd8 {[%clk 0:01:23]} 31. Qc7 {[%clk 0:00:33]}  Bf6 {[%clk 0:01:12]} 32. Rd2 {[%clk 0:00:18]}  Kg7 {[%clk 0:01:01]} 33. d5 {[%clk 0:00:19]}  Qb1+ {[%clk 0:00:55]} 34. Kh2 {[%clk 0:00:19]}  Qe1 {[%clk 0:00:54]} 35. Qc2 {[%clk 0:00:16]}  Rb8 {[%clk 0:00:51]} 36. Re2 {[%clk 0:00:08]}  Qf1 {[%clk 0:00:48]} 37. Ba6 {[%clk 0:00:08]}  Rxb2 {[%clk 0:00:46]} 38. Qe4 {[%clk 0:00:03]}  Rxe2 {[%clk 0:00:45]} 39. Qxe2 {[%clk 0:00:04]}  Qa1 {[%clk 0:00:42]} 40. f4 {[%clk 0:00:04]}  Bd4 {[%clk 0:00:40]} 41. h4 {[%clk 0:00:04]}  h5 {[%clk 0:00:39]} 42. Kg2 {[%clk 0:00:04]}  Qg1+ {[%clk 0:00:39]} 43. Kf3 {[%clk 0:00:05]}  Qh1+ {[%clk 0:00:39]} 44. Qg2 {[%clk 0:00:05]}  Qa1 {[%clk 0:00:38]} 45. Qe2 {[%clk 0:00:05]}  Qa5 {[%clk 0:00:31]} 46. Qd3 {[%clk 0:00:05]}  Qxd5+ {[%clk 0:00:31]} 47. Qe4 {[%clk 0:00:05]}  Qb3+ {[%clk 0:00:29]} 48. Qd3 {[%clk 0:00:06]}  Qb4 {[%clk 0:00:29]} 49. Bc4 {[%clk 0:00:04]}  Qb2 {[%clk 0:00:27]} 50. Ke4 {[%clk 0:00:04]}  Bf6 {[%clk 0:00:24]} 51. Qd5 {[%clk 0:00:05]}  Qg2+ {[%clk 0:00:13]} 52. Kd3 {[%clk 0:00:06]}  Qxd5+ {[%clk 0:00:14]} 53. Kc2 {[%clk 0:00:07]}  Qxc4+ {[%clk 0:00:14]} 0-1


[Site "https://www.chess.com"]

[Event "Titled Tuesday Blitz September 27 Early 2022"]
[White "Erenberg, Ariel"]
[Black "Rustemov, Alexander"]
[WhiteFideId "2811634"]
[BlackFideId "4119002"]
[WhiteElo "2243"]
[BlackElo "2840"]
[Result "0-1"]
[Round "09"]
[TimeControl "180+1"]
[Date "2022.09.27"]
[WhiteClock "0:00:01"]
[BlackClock "0:00:12"]

1. Nf3 {[%clk 0:03:00]}  d5 {[%clk 0:02:59]} 2. c4 {[%clk 0:02:58]}  c6 {[%clk 0:02:59]} 3. b3 {[%clk 0:02:57]}  Nf6 {[%clk 0:02:59]} 4. Bb2 {[%clk 0:02:58]}  Bf5 {[%clk 0:03:00]} 5. g3 {[%clk 0:02:55]}  e6 {[%clk 0:03:00]} 6. Bg2 {[%clk 0:02:55]}  h6 {[%clk 0:03:00]} 7. O-O {[%clk 0:02:56]}  Be7 {[%clk 0:03:00]} 8. d3 {[%clk 0:02:55]}  O-O {[%clk 0:03:00]} 9. Nbd2 {[%clk 0:02:55]}  Nbd7 {[%clk 0:02:59]} 10. cxd5 {[%clk 0:02:53]}  exd5 {[%clk 0:02:49]} 11. Re1 {[%clk 0:02:47]}  Bh7 {[%clk 0:02:43]} 12. a3 {[%clk 0:02:36]}  a5 {[%clk 0:02:42]} 13. Nd4 {[%clk 0:02:29]}  Re8 {[%clk 0:02:40]} 14. e4 {[%clk 0:02:21]}  Nc5 {[%clk 0:02:35]} 15. Qc2 {[%clk 0:02:13]}  Bf8 {[%clk 0:02:26]} 16. Rad1 {[%clk 0:02:02]}  Qb6 {[%clk 0:02:12]} 17. h3 {[%clk 0:01:52]}  Qa6 {[%clk 0:02:06]} 18. Bf1 {[%clk 0:01:48]}  Rad8 {[%clk 0:02:03]} 19. Nf5 {[%clk 0:01:46]}  Bxf5 {[%clk 0:01:58]} 20. Bxf6 {[%clk 0:01:40]}  gxf6 {[%clk 0:01:56]} 21. d4 {[%clk 0:01:30]}  Qa7 {[%clk 0:01:48]} 22. exf5 {[%clk 0:01:30]}  Nd7 {[%clk 0:01:41]} 23. Qb2 {[%clk 0:01:16]}  Qb8 {[%clk 0:01:33]} 24. Bd3 {[%clk 0:01:04]}  Qd6 {[%clk 0:01:32]} 25. a4 {[%clk 0:00:58]}  Qa3 {[%clk 0:01:30]} 26. Qc2 {[%clk 0:00:57]}  Qb4 {[%clk 0:01:24]} 27. Nf3 {[%clk 0:00:56]}  Bd6 {[%clk 0:01:18]} 28. h4 {[%clk 0:00:55]}  Kg7 {[%clk 0:01:17]} 29. Kg2 {[%clk 0:00:55]}  Qb6 {[%clk 0:01:13]} 30. Qb2 {[%clk 0:00:43]}  Bb4 {[%clk 0:01:13]} 31. Rxe8 {[%clk 0:00:41]}  Rxe8 {[%clk 0:01:14]} 32. Nh2 {[%clk 0:00:40]}  Bf8 {[%clk 0:01:06]} 33. Ng4 {[%clk 0:00:39]}  Qb4 {[%clk 0:01:03]} 34. Ne3 {[%clk 0:00:23]}  Kh7 {[%clk 0:00:56]} 35. h5 {[%clk 0:00:20]}  Nb6 {[%clk 0:00:49]} 36. Ng4 {[%clk 0:00:20]}  Bg7 {[%clk 0:00:49]} 37. Bf1 {[%clk 0:00:18]}  Nxa4 {[%clk 0:00:48]} 38. Qc2 {[%clk 0:00:16]}  Nb6 {[%clk 0:00:48]} 39. Rd3 {[%clk 0:00:13]}  Nc8 {[%clk 0:00:47]} 40. Qc1 {[%clk 0:00:11]}  Nd6 {[%clk 0:00:47]} 41. Re3 {[%clk 0:00:08]}  Re4 {[%clk 0:00:44]} 42. Rxe4 {[%clk 0:00:08]}  Nxe4 {[%clk 0:00:44]} 43. Qe3 {[%clk 0:00:08]}  Qc3 {[%clk 0:00:43]} 44. Qf4 {[%clk 0:00:08]}  Qxd4 {[%clk 0:00:40]} 45. Qc7 {[%clk 0:00:08]}  Nc5 {[%clk 0:00:29]} 46. f4 {[%clk 0:00:07]}  Qe4+ {[%clk 0:00:27]} 47. Kh2 {[%clk 0:00:06]}  Qxf5 {[%clk 0:00:27]} 48. Bh3 {[%clk 0:00:06]}  Qxh5 {[%clk 0:00:26]} 49. Qxa5 {[%clk 0:00:03]}  Ne4 {[%clk 0:00:26]} 50. Qc7 {[%clk 0:00:04]}  f5 {[%clk 0:00:26]} 51. Ne5 {[%clk 0:00:02]}  Qe2+ {[%clk 0:00:19]} 52. Bg2 {[%clk 0:00:02]}  Qf2 {[%clk 0:00:19]} 53. Qxf7 {[%clk 0:00:01]}  Qxg3+ {[%clk 0:00:19]} 54. Kg1 {[%clk 0:00:01]}  Qe1+ {[%clk 0:00:19]} 55. Kh2 {[%clk 0:00:02]}  Qg3+ {[%clk 0:00:18]} 56. Kg1 {[%clk 0:00:02]}  Qe3+ {[%clk 0:00:18]} 57. Kh1 {[%clk 0:00:01]}  Nf2+ {[%clk 0:00:12]} 58. Kh2 {[%clk 0:00:01]}  Qxf4+ {[%clk 0:00:12]} 59. Kg1 {[%clk 0:00:01]}  Qxe5 {[%clk 0:00:12]} 0-1


[Site "https://www.chess.com"]

[Event "Titled Tuesday Blitz September 27 Early 2022"]
[White "Fernandez Hernandez, Gerardo"]
[Black "Luxama, Jacques Muller"]
[WhiteFideId "2207400"]
[BlackFideId "11900113"]
[WhiteElo "2169"]
[BlackElo "1931"]
[Result "1-0"]
[Round "09"]
[TimeControl "180+1"]
[Date "2022.09.27"]
[WhiteClock "0:01:51"]
[BlackClock "0:00:55"]

1. e4 {[%clk 0:03:00]}  e5 {[%clk 0:02:59]} 2. Nf3 {[%clk 0:03:00]}  Nc6 {[%clk 0:03:00]} 3. Bc4 {[%clk 0:03:00]}  Bc5 {[%clk 0:03:00]} 4. b4 {[%clk 0:03:00]}  Bxb4 {[%clk 0:03:00]} 5. c3 {[%clk 0:03:00]}  Bd6 {[%clk 0:03:01]} 6. d4 {[%clk 0:03:00]}  Nf6 {[%clk 0:03:00]} 7. O-O {[%clk 0:02:52]}  O-O {[%clk 0:02:55]} 8. Re1 {[%clk 0:02:51]}  h6 {[%clk 0:02:53]} 9. Nbd2 {[%clk 0:02:47]}  Re8 {[%clk 0:02:50]} 10. h3 {[%clk 0:02:33]}  b6 {[%clk 0:02:13]} 11. a4 {[%clk 0:02:18]}  Bb7 {[%clk 0:02:11]} 12. Qc2 {[%clk 0:02:11]}  a5 {[%clk 0:01:19]} 13. Qb3 {[%clk 0:02:03]}  Qe7 {[%clk 0:01:11]} 14. Nh4 {[%clk 0:01:56]}  Qf8 {[%clk 0:00:55]} 15. Ng6 {[%clk 0:01:51]} 1-0


[Site "https://www.chess.com"]

[Event "Titled Tuesday Blitz September 27 Early 2022"]
[White "Fiorito, Joaquin"]
[Black "Papasimakopoulos, Alexandros"]
[WhiteFideId "180173"]
[BlackFideId "4244125"]
[WhiteElo "1758"]
[BlackElo "2357"]
[Result "0-1"]
[Round "09"]
[TimeControl "180+1"]
[Date "2022.09.27"]
[WhiteClock "0:00:03"]
[BlackClock "0:00:13"]

1. d4 {[%clk 0:03:00]}  e6 {[%clk 0:02:49]} 2. e4 {[%clk 0:02:59]}  d5 {[%clk 0:02:49]} 3. Nd2 {[%clk 0:02:59]}  Nf6 {[%clk 0:02:49]} 4. e5 {[%clk 0:02:59]}  Nfd7 {[%clk 0:02:49]} 5. Ngf3 {[%clk 0:03:00]}  c5 {[%clk 0:02:49]} 6. c4 {[%clk 0:03:01]}  Nc6 {[%clk 0:02:50]} 7. cxd5 {[%clk 0:03:01]}  exd5 {[%clk 0:02:49]} 8. dxc5 {[%clk 0:02:59]}  Bxc5 {[%clk 0:02:46]} 9. Bd3 {[%clk 0:02:58]}  Ndxe5 {[%clk 0:02:39]} 10. Nxe5 {[%clk 0:02:25]}  Nxe5 {[%clk 0:02:37]} 11. Bb5+ {[%clk 0:02:24]}  Nc6 {[%clk 0:02:34]} 12. O-O {[%clk 0:02:25]}  O-O {[%clk 0:02:33]} 13. Nb3 {[%clk 0:02:24]}  Bb6 {[%clk 0:02:32]} 14. Bf4 {[%clk 0:02:22]}  Qf6 {[%clk 0:02:26]} 15. Qd2 {[%clk 0:02:20]}  h6 {[%clk 0:02:12]} 16. Rac1 {[%clk 0:02:14]}  a6 {[%clk 0:02:01]} 17. Be2 {[%clk 0:02:08]}  Re8 {[%clk 0:01:52]} 18. Bf3 {[%clk 0:02:08]}  Be6 {[%clk 0:01:43]} 19. Bg3 {[%clk 0:02:02]}  Nd4 {[%clk 0:01:38]} 20. Nxd4 {[%clk 0:02:00]}  Qxd4 {[%clk 0:01:38]} 21. Qc2 {[%clk 0:01:35]}  Rac8 {[%clk 0:01:33]} 22. Qb3 {[%clk 0:01:35]}  Rxc1 {[%clk 0:01:06]} 23. Rxc1 {[%clk 0:01:35]}  Rd8 {[%clk 0:01:05]} 24. Rd1 {[%clk 0:01:22]}  Qc5 {[%clk 0:00:59]} 25. Qd3 {[%clk 0:01:15]}  Rc8 {[%clk 0:00:44]} 26. h3 {[%clk 0:01:07]}  Qc2 {[%clk 0:00:41]} 27. Qxc2 {[%clk 0:01:07]}  Rxc2 {[%clk 0:00:40]} 28. Bxd5 {[%clk 0:00:38]}  Bxd5 {[%clk 0:00:39]} 29. Rxd5 {[%clk 0:00:39]}  Rxb2 {[%clk 0:00:40]} 30. a4 {[%clk 0:00:32]}  Ra2 {[%clk 0:00:20]} 31. Rd7 {[%clk 0:00:32]}  Rxa4 {[%clk 0:00:19]} 32. Rxb7 {[%clk 0:00:32]}  Bd4 {[%clk 0:00:18]} 33. Rb8+ {[%clk 0:00:31]}  Kh7 {[%clk 0:00:17]} 34. Rb7 {[%clk 0:00:30]}  Kg6 {[%clk 0:00:17]} 35. h4 {[%clk 0:00:20]}  h5 {[%clk 0:00:16]} 36. Rd7 {[%clk 0:00:16]}  Bf6 {[%clk 0:00:14]} 37. Rd6 {[%clk 0:00:16]}  Kf5 {[%clk 0:00:12]} 38. Rd5+ {[%clk 0:00:16]}  Kg6 {[%clk 0:00:13]} 39. Rd6 {[%clk 0:00:16]}  Kh7 {[%clk 0:00:13]} 40. Rd7 {[%clk 0:00:16]}  Kg8 {[%clk 0:00:12]} 41. Ra7 {[%clk 0:00:14]}  Ra1+ {[%clk 0:00:10]} 42. Kh2 {[%clk 0:00:14]}  Ra2 {[%clk 0:00:11]} 43. Ra8+ {[%clk 0:00:13]}  Kh7 {[%clk 0:00:11]} 44. Ra7 {[%clk 0:00:14]}  Kg6 {[%clk 0:00:12]} 45. Rb7 {[%clk 0:00:11]}  a5 {[%clk 0:00:12]} 46. Rb6 {[%clk 0:00:12]}  a4 {[%clk 0:00:12]} 47. Ra6 {[%clk 0:00:11]}  Kf5 {[%clk 0:00:11]} 48. Ra5+ {[%clk 0:00:11]}  Kg6 {[%clk 0:00:11]} 49. Ra6 {[%clk 0:00:12]}  Kh7 {[%clk 0:00:12]} 50. f3 {[%clk 0:00:09]}  a3 {[%clk 0:00:11]} 51. Bd6 {[%clk 0:00:10]}  Bb2 {[%clk 0:00:10]} 52. Ra7 {[%clk 0:00:09]}  Kg6 {[%clk 0:00:10]} 53. Ra6 {[%clk 0:00:09]}  f6 {[%clk 0:00:10]} 54. Ra7 {[%clk 0:00:08]}  Ra1 {[%clk 0:00:10]} 55. Bf8 {[%clk 0:00:08]}  Be5+ {[%clk 0:00:10]} 56. Kh3 {[%clk 0:00:07]}  a2 {[%clk 0:00:11]} 57. f4 {[%clk 0:00:02]}  Bxf4 {[%clk 0:00:10]} 58. g3 {[%clk 0:00:03]}  Be5 {[%clk 0:00:10]} 59. Rxg7+ {[%clk 0:00:03]}  Kf5 {[%clk 0:00:11]} 60. Ra7 {[%clk 0:00:03]}  Rh1+ {[%clk 0:00:11]} 61. Kg2 {[%clk 0:00:04]}  a1=Q {[%clk 0:00:12]} 62. Rxa1 {[%clk 0:00:03]}  Rxa1 {[%clk 0:00:13]} 0-1


[Site "https://www.chess.com"]

[Event "Titled Tuesday Blitz September 27 Early 2022"]
[White "Flis, Pawel"]
[Black "Johnson, Ben"]
[WhiteFideId "1112864"]
[BlackFideId "2010917"]
[WhiteElo "1735"]
[BlackElo "2208"]
[Result "0-1"]
[Round "09"]
[TimeControl "180+1"]
[Date "2022.09.27"]
[WhiteClock "0:00:59"]
[BlackClock "0:00:51"]

1. Nf3 {[%clk 0:03:00]}  d5 {[%clk 0:02:59]} 2. g3 {[%clk 0:03:00]}  c6 {[%clk 0:02:58]} 3. Bg2 {[%clk 0:03:01]}  Bg4 {[%clk 0:02:58]} 4. O-O {[%clk 0:03:01]}  e6 {[%clk 0:02:58]} 5. d3 {[%clk 0:03:01]}  Bd6 {[%clk 0:02:52]} 6. c4 {[%clk 0:03:01]}  Nd7 {[%clk 0:02:43]} 7. cxd5 {[%clk 0:03:01]}  exd5 {[%clk 0:02:40]} 8. Nc3 {[%clk 0:03:01]}  Ngf6 {[%clk 0:02:38]} 9. Bg5 {[%clk 0:03:00]}  h6 {[%clk 0:02:36]} 10. Bd2 {[%clk 0:02:58]}  O-O {[%clk 0:02:36]} 11. h3 {[%clk 0:02:58]}  Bh5 {[%clk 0:02:34]} 12. Qb3 {[%clk 0:02:59]}  Nc5 {[%clk 0:02:33]} 13. Qc2 {[%clk 0:02:56]}  Re8 {[%clk 0:02:32]} 14. Rfe1 {[%clk 0:02:55]}  Qd7 {[%clk 0:02:28]} 15. Kh2 {[%clk 0:02:50]}  Rac8 {[%clk 0:02:25]} 16. b4 {[%clk 0:02:46]}  Ne6 {[%clk 0:02:25]} 17. Qa4 {[%clk 0:02:37]}  b5 {[%clk 0:02:16]} 18. Qb3 {[%clk 0:02:26]}  Bxf3 {[%clk 0:02:13]} 19. Bxf3 {[%clk 0:02:27]}  Nd4 {[%clk 0:02:13]} 20. Qb2 {[%clk 0:02:22]}  Nxf3+ {[%clk 0:02:10]} 21. exf3 {[%clk 0:02:23]}  h5 {[%clk 0:02:03]} 22. h4 {[%clk 0:02:20]}  Rxe1 {[%clk 0:01:50]} 23. Rxe1 {[%clk 0:02:18]}  Re8 {[%clk 0:01:51]} 24. Rxe8+ {[%clk 0:02:17]}  Qxe8 {[%clk 0:01:51]} 25. Be3 {[%clk 0:02:14]}  Qe7 {[%clk 0:01:46]} 26. Bd4 {[%clk 0:02:10]}  Bxb4 {[%clk 0:01:41]} 27. Bxf6 {[%clk 0:02:02]}  gxf6 {[%clk 0:01:41]} 28. Ne2 {[%clk 0:01:59]}  Bd6 {[%clk 0:01:33]} 29. Nd4 {[%clk 0:01:51]}  Qe5 {[%clk 0:01:17]} 30. Qc3 {[%clk 0:01:32]}  b4 {[%clk 0:00:58]} 31. Qxc6 {[%clk 0:01:28]}  Qxd4 {[%clk 0:00:58]} 32. Qxd6 {[%clk 0:01:28]}  Qxf2+ {[%clk 0:00:58]} 33. Kh3 {[%clk 0:01:23]}  Qxf3 {[%clk 0:00:55]} 34. Qb8+ {[%clk 0:00:59]}  Kg7 {[%clk 0:00:52]} 35. Qxa7 {[%clk 0:00:59]}  Qh1# {[%clk 0:00:51]} 0-1


[Site "https://www.chess.com"]

[Event "Titled Tuesday Blitz September 27 Early 2022"]
[White "Gabrielian, Artur"]
[Black "Shyaamnikhil P"]
[WhiteFideId "4131002"]
[BlackFideId "5024218"]
[WhiteElo "2467"]
[BlackElo "2273"]
[Result "1/2-1/2"]
[Round "09"]
[TimeControl "180+1"]
[Date "2022.09.27"]
[WhiteClock "0:00:21"]
[BlackClock "0:00:10"]

1. e4 {[%clk 0:03:00]}  e5 {[%clk 0:02:58]} 2. Nf3 {[%clk 0:03:00]}  Nc6 {[%clk 0:02:57]} 3. Bc4 {[%clk 0:03:00]}  Nf6 {[%clk 0:02:56]} 4. d3 {[%clk 0:03:01]}  h6 {[%clk 0:02:54]} 5. O-O {[%clk 0:03:00]}  d6 {[%clk 0:02:53]} 6. c3 {[%clk 0:03:00]}  Be7 {[%clk 0:02:39]} 7. Re1 {[%clk 0:02:53]}  O-O {[%clk 0:02:32]} 8. a4 {[%clk 0:02:53]}  a5 {[%clk 0:02:25]} 9. Nbd2 {[%clk 0:02:52]}  Kh8 {[%clk 0:02:22]} 10. Nf1 {[%clk 0:02:51]}  Nd7 {[%clk 0:02:19]} 11. Ng3 {[%clk 0:02:48]}  Nb6 {[%clk 0:02:18]} 12. Bb3 {[%clk 0:02:48]}  Be6 {[%clk 0:02:17]} 13. Bc2 {[%clk 0:02:48]}  Bg4 {[%clk 0:01:37]} 14. h3 {[%clk 0:02:45]}  Bxf3 {[%clk 0:01:37]} 15. Qxf3 {[%clk 0:02:45]}  Bg5 {[%clk 0:01:37]} 16. Be3 {[%clk 0:02:29]}  Bxe3 {[%clk 0:01:29]} 17. fxe3 {[%clk 0:02:30]}  g6 {[%clk 0:01:24]} 18. Rf1 {[%clk 0:02:28]}  Qh4 {[%clk 0:01:22]} 19. Bb3 {[%clk 0:02:24]}  f6 {[%clk 0:01:18]} 20. Rf2 {[%clk 0:02:18]}  h5 {[%clk 0:01:15]} 21. Raf1 {[%clk 0:02:17]}  Kg7 {[%clk 0:01:14]} 22. Kh2 {[%clk 0:02:14]}  Ne7 {[%clk 0:01:08]} 23. d4 {[%clk 0:02:10]}  Qg5 {[%clk 0:01:07]} 24. Ne2 {[%clk 0:02:03]}  c6 {[%clk 0:00:48]} 25. g3 {[%clk 0:01:48]}  f5 {[%clk 0:00:46]} 26. Bc2 {[%clk 0:01:48]}  fxe4 {[%clk 0:00:39]} 27. Qxe4 {[%clk 0:01:32]}  Rxf2+ {[%clk 0:00:30]} 28. Rxf2 {[%clk 0:01:31]}  Rf8 {[%clk 0:00:29]} 29. Rxf8 {[%clk 0:01:29]}  Kxf8 {[%clk 0:00:30]} 30. h4 {[%clk 0:01:29]}  Qf6 {[%clk 0:00:25]} 31. Kg2 {[%clk 0:01:25]}  Nc4 {[%clk 0:00:19]} 32. dxe5 {[%clk 0:01:16]}  Nxe5 {[%clk 0:00:18]} 33. Nf4 {[%clk 0:01:16]}  Nf5 {[%clk 0:00:17]} 34. Nxg6+ {[%clk 0:01:05]}  Qxg6 {[%clk 0:00:14]} 35. Qxf5+ {[%clk 0:01:05]}  Qxf5 {[%clk 0:00:13]} 36. Bxf5 {[%clk 0:01:06]}  Nc4 {[%clk 0:00:13]} 37. Bc8 {[%clk 0:00:59]}  b6 {[%clk 0:00:11]} 38. b3 {[%clk 0:00:54]}  Nxe3+ {[%clk 0:00:11]} 39. Kf3 {[%clk 0:00:55]}  Nd5 {[%clk 0:00:10]} 40. c4 {[%clk 0:00:54]}  Ne7 {[%clk 0:00:08]} 41. Be6 {[%clk 0:00:53]}  Kg7 {[%clk 0:00:08]} 42. g4 {[%clk 0:00:53]}  Kf6 {[%clk 0:00:08]} 43. Bd7 {[%clk 0:00:52]}  hxg4+ {[%clk 0:00:08]} 44. Kxg4 {[%clk 0:00:52]}  Ng6 {[%clk 0:00:07]} 45. Kg3 {[%clk 0:00:45]}  Ne5 {[%clk 0:00:07]} 46. Bg4 {[%clk 0:00:43]}  Nd3 {[%clk 0:00:07]} 47. Bd1 {[%clk 0:00:40]}  Nc5 {[%clk 0:00:04]} 48. Kf4 {[%clk 0:00:38]}  d5 {[%clk 0:00:04]} 49. cxd5 {[%clk 0:00:38]}  cxd5 {[%clk 0:00:05]} 50. Ke3 {[%clk 0:00:35]}  Ke5 {[%clk 0:00:04]} 51. h5 {[%clk 0:00:36]}  d4+ {[%clk 0:00:04]} 52. Kd2 {[%clk 0:00:35]}  Kf6 {[%clk 0:00:04]} 53. Ke2 {[%clk 0:00:28]}  Kg5 {[%clk 0:00:03]} 54. Kf2 {[%clk 0:00:28]}  Kf5 {[%clk 0:00:02]} 55. Kf3 {[%clk 0:00:27]}  Kg5 {[%clk 0:00:02]} 56. Kf2 {[%clk 0:00:25]}  Kf5 {[%clk 0:00:02]} 57. Kg3 {[%clk 0:00:17]}  Kg5 {[%clk 0:00:02]} 58. Kg2 {[%clk 0:00:17]}  Kf5 {[%clk 0:00:02]} 59. Kf2 {[%clk 0:00:17]}  Kg5 {[%clk 0:00:02]} 60. Ke1 {[%clk 0:00:17]}  Kf5 {[%clk 0:00:02]} 61. Kd2 {[%clk 0:00:18]}  Kg5 {[%clk 0:00:02]} 62. Kc2 {[%clk 0:00:18]}  Kf5 {[%clk 0:00:02]} 63. Be2 {[%clk 0:00:19]}  Kg5 {[%clk 0:00:02]} 64. Bd1 {[%clk 0:00:19]}  Kf5 {[%clk 0:00:02]} 65. Kb2 {[%clk 0:00:19]}  Kg5 {[%clk 0:00:02]} 66. Ka3 {[%clk 0:00:20]}  Kf5 {[%clk 0:00:01]} 67. b4 {[%clk 0:00:20]}  axb4+ {[%clk 0:00:02]} 68. Kxb4 {[%clk 0:00:21]}  Nxa4 {[%clk 0:00:02]} 69. Kxa4 {[%clk 0:00:21]}  Kf6 {[%clk 0:00:02]} 70. Kb5 {[%clk 0:00:21]}  Kg7 {[%clk 0:00:02]} 71. Kc4 {[%clk 0:00:21]}  Kh8 {[%clk 0:00:03]} 72. Kd3 {[%clk 0:00:21]}  Kg7 {[%clk 0:00:04]} 73. Ke4 {[%clk 0:00:22]}  Kh8 {[%clk 0:00:04]} 74. Kd3 {[%clk 0:00:22]}  Kg7 {[%clk 0:00:05]} 75. Bg4 {[%clk 0:00:22]}  Kh8 {[%clk 0:00:06]} 76. Bf5 {[%clk 0:00:22]}  Kg7 {[%clk 0:00:07]} 77. Bg6 {[%clk 0:00:21]}  Kh8 {[%clk 0:00:08]} 78. Kxd4 {[%clk 0:00:19]}  Kg7 {[%clk 0:00:09]} 79. Ke5 {[%clk 0:00:20]}  Kh8 {[%clk 0:00:10]} 80. Kf6 {[%clk 0:00:20]}  Kg8 {[%clk 0:00:09]} 81. Bf7+ {[%clk 0:00:20]}  Kh8 {[%clk 0:00:10]} 82. Kg5 {[%clk 0:00:21]}  Kh7 {[%clk 0:00:10]} 83. h6 {[%clk 0:00:21]}  Kh8 {[%clk 0:00:10]} 84. Kg6 {[%clk 0:00:21]}  b5 {[%clk 0:00:09]} 85. Bb3 {[%clk 0:00:21]}  b4 {[%clk 0:00:10]} 86. h7 {[%clk 0:00:21]} 1/2-1/2


[Site "https://www.chess.com"]